Cogmind - Beta 16 --- EXPLORER MODE // 2025.12.08 @ 14:05:22 Player: K.K.Y. Result: Destroyed by G9-010(R) with Subdweller Beam Cannon Performance ------------- Evolutions (0) 0 Regions Visited (3) 600 Robots Destroyed (14) 70 Value Destroyed (380) 380 Prototype IDs (0) 0 Alien Tech Used (0) 0 Bonus (0) 0 TOTAL SCORE: 1050 Bonus ------- None Cogmind --------- Core Integrity 0/250 Matter 270/300 Energy 71/100 System Corruption 0% Temperature Cool (9) Movement Core (50) Location -10/Subcaves Parts ------- > --- POWER (1) -------- (None) > --- PROPULSION (2) --- (None) > --- UTILITY (3) ------ Targeting Computer > --- WEAPON (2) ------- Beam Cannon > --- INVENTORY (5) ---- Structural Scanner Datajack Peak State ------------ > --- POWER ------------ Ion Engine > --- PROPULSION ------- Flight Unit Flight Unit > --- UTILITY ---------- Structural Scanner Targeting Computer > --- WEAPON ----------- Medium Laser > --- INVENTORY -------- Assault Rifle Assault Rifle [Rating: 6] Favorites ----------- Power Ion Engine Engine Ion Engine Propulsion Flight Unit Flight Unit Flight Unit Utility Targeting Computer Device Structural Scanner Processor Targeting Computer Weapon Medium Laser Energy Gun Medium Laser Energy Cannon Beam Cannon Ballistic Gun Assault Rifle Build | -11 -10 -10 -10 ------- Run | Yrd Mat Min Sub Slots Evolved 1 | . 1 . . Power . | . . . . Propulsion . | . . . . Utility 1 | . 1 . . Weapon . | . . . . Parts Attached 10 | 1 7 2 . Power 1 | . 1 . . Engine 1 | . 1 . . Core . | . . . . Reactor . | . . . . Propulsion 2 | . 2 . . Treads . | . . . . Leg . | . . . . Wheel . | . . . . Hover . | . . . . Flight 2 | . 2 . . Utility 3 | 1 2 . . Device 2 | . 2 . . Storage . | . . . . Processor 1 | 1 . . . Hackware . | . . . . Protection . | . . . . Artifact . | . . . . Weapon 4 | . 2 2 . Energy Gun 1 | . 1 . . Energy Cannon 1 | . 1 . . Ballistic Gun 2 | . . 2 . Ballistic Cannon . | . . . . Launcher . | . . . . Special Weapon . | . . . . Impact Weapon . | . . . . Slashing Weapon . | . . . . Piercing Weapon . | . . . . Special Melee Weapon . | . . . . Unidentified Prototypes . | . . . . Parts Lost 4 | . 1 . 3 Power . | . . . . Propulsion 2 | . 1 . 1 Utility . | . . . . Weapon 2 | . . . 2 Highest Loss Streak 2 | . 1 . 2 To Critical Strikes . | . . . . Average Backups 3 | 2 3 4 3 Power . | . . . . Propulsion . | . . . . Utility . | . . 1 1 Weapon 2 | 1 2 2 1 Tool/Special . | . . . . Unused Backups 1 | . . . 1 Power . | . . . . Propulsion . | . . . . Utility . | . . . . Weapon . | . . . . Tool/Special 1 | . . . 1 Average Slot Usage (%) 49 | . 57 35 38 Engine 8 | . 11 4 . Flight 10 | . 12 12 2 Device 6 | . 10 1 . Processor 12 | . 12 12 12 Energy Gun 4 | . 8 . . Ballistic Gun 4 | . . 4 23 Peak Build Rating 6 | 1 6 6 4 Average Rating 4 | . 4 2 2 On Entrance 2 | . 1 6 4 Avg Prop Armor Cover (%) . | . . . . Naked Turns . | . . . . Heaviest Build 8 | . 8 6 4 Greatest Support 8 | 3 8 4 4 Greatest Overweight (x) 2 | . 2 1 1 Average Overweight (x) . | . . . . Largest Inventory Capacity 5 | 5 5 5 5 Average Capacity 5 | 5 5 5 5 Most Carried 5 | 5 5 5 3 Average Carried 3 | 3 3 4 2 Final Capacity 5 | 5 5 5 5 Final Carried 5 | 5 5 3 2 Class Distribution -------------------- 100% | Hacker-Mutant Dominant Class ---------------- Hacker-Mutant | -10/Materials Hacker-Mutant | -10/Mines Hacker-Mutant | -10/Subcaves Resources | -11 -10 -10 -10 ----------- Run | Yrd Mat Min Sub Matter Collected 406 | 210 84 62 50 Remotely . | . . . . Salvage Created 499 | . 314 31 154 Parts 19 | . 10 1 8 Haulers Intercepted 1 | . 1 . . Recyclers Shooed . | . . . . Parts Field Recycled . | . . . . Retrieved Matter . | . . . . Parts Self-Destructed . | . . . . Prevented . | . . . . Parts Restored . | . . . . Kills | -11 -10 -10 -10 ------- Run | Yrd Mat Min Sub Combat Hostiles Destroyed 11 | . 6 2 3 Guns 7 | . 2 2 3 Cannons 2 | . 2 . . Classes Destroyed 5 | . 4 . 1 Hauler 1 | . 1 . . Watcher 2 | . 2 . . Swarmer 3 | . 1 2 . Grunt 5 | . 5 . . Subdweller 3 | . . . 3 Best Kill Streak 2 | . 2 2 2 Combat Bots Only 2 | . 2 2 2 Max Kills in Single Turn 1 | . 1 1 1 Gunslinging . | . . . . Exploded . | . . . . Melee . | . . . . Uniques/NPCs Destroyed . | . . . . Combat | -11 -10 -10 -10 -------- Run | Yrd Mat Min Sub Hostile Shots Fired 71 | . 35 3 33 Missed 18 | . 9 1 8 Hits 53 | . 26 2 25 Projectile 53 | . 26 2 25 Critical Strikes 1 | . 1 . . Damage Taken 566 | . 192 15 359 Core 254 | . 107 9 138 Absorbed by Shields . | . . . . Ignored by Resistances 341 | . 120 9 212 Core Remaining (%) 100 | 100 . . . Volleys Fired 60 | . 41 2 17 Largest 2 | . 1 2 2 Hottest 60 | . 60 40 60 Shots Fired 75 | . 41 4 30 Gun 67 | . 35 4 28 Cannon 8 | . 6 . 2 Launcher . | . . . . Special . | . . . . Kinetic 32 | . . 4 28 Thermal 43 | . 41 . 2 Explosive . | . . . . Electromagnetic . | . . . . Robot Hit Streak 74 | . 41 44 74 Robot Miss Streak . | . . . . Penetration Max . | . . . . Secondary Targets 1 | . . . 1 Max Gunslinging Chain 1 | . . . 1 Shots Hit Robots 74 | . 41 3 30 Core Hits 21 | . 12 2 7 Critical Kills . | . . . . Critical Parts Destroyed . | . . . . Critical Strikes 4 | . 4 . . Burn 4 | . 4 . . Melee Attacks . | . . . . Impact . | . . . . Slashing . | . . . . Piercing . | . . . . Sneak Attacks . | . . . . Combat Hostiles . | . . . . Follow-up Attacks . | . . . . Damage Inflicted 935 | . 542 41 352 Guns 796 | . 438 41 317 Cannons 139 | . 104 . 35 Explosions . | . . . . Melee . | . . . . Ramming . | . . . . Kinetic 358 | . . 41 317 Thermal 577 | . 542 . 35 Explosive . | . . . . Electromagnetic . | . . . . Impact . | . . . . Slashing . | . . . . Piercing . | . . . . Highest Corruption . | . . . . Average Corruption . | . . . . Corruption Purged . | . . . . Corruption Blocked . | . . . . Overload Shots . | . . . . Overflow Damage . | . . . . Projectiles . | . . . . Explosions . | . . . . Melee . | . . . . Knockbacks . | . . . . Impact . | . . . . Kinetic . | . . . . Secondary . | . . . . Self-Inflicted Damage . | . . . . Shots . | . . . . Rammed . | . . . . Targets Rammed . | . . . . Kicked . | . . . . Crushed . | . . . . Highest Temperature 369 | . 369 . . Average Temperature 146 | . 146 . . Received Heat Transfer 315 | . 189 9 117 Siege Activations . | . . . . Martial Activations . | . . . . Shielding Activations . | . . . . Robots Disrupted . | . . . . Combat Hostiles . | . . . . Robots Corrupted . | . . . . Combat Hostiles . | . . . . Parts Fried . | . . . . Impact Corruptions . | . . . . Robots Melted 2 | . 2 . . Combat Hostiles 2 | . 2 . . Parts Melted 7 | . 7 . . Heat Transferred 1887 | . 1813 . 74 Parts Sabotaged . | . . . . Parts Stolen . | . . . . Parts Stripped . | . . . . Power Chain Reactions . | . . . . Alert | -11 -10 -10 -10 ------- Run | Yrd Mat Min Sub Maximum Alert Level . | . . . . Low Security (%) 100 | 100 100 100 . Level 1 . | . . . . Level 2 . | . . . . Level 3 . | . . . . Level 4 . | . . . . Level 5 . | . . . . High Security . | . . . . Max Security . | . . . . Peak Influence 81 | . 40 81 . Initial . | . . . . Average 11 | . 10 16 . Influence Increases 292 | . 161 131 . Destroy 0b10 Robot/C 180 | . 120 60 . Destroy 0b10 Robot/NC 15 | . 15 . . Destroy Leader 36 | . 26 10 . Allied During Kill 1 | . . 1 . Lose Combat Pursuer 60 | . . 60 . Influence Decreases 292 | . 161 65 66 Entered New Map 43 | . . . 43 Time Decay 209 | . 151 45 13 Lost Part 20 | . 10 . 10 Lost Ally 20 | . . 20 . Squads Dispatched . | . . . . Investigation . | . . . . Extermination . | . . . . Reinforcement . | . . . . Assault . | . . . . Garrison . | . . . . Intercept . | . . . . Searches Triggered . | . . . . Construction Impeded . | . . . . Haulers Reinforced . | . . . . Active Scanning Responses . | . . . . Cargo Convoy Interrupts . | . . . . Stealth | -11 -10 -10 -10 --------- Run | Yrd Mat Min Sub Distress Signals . | . . . . Communications Jammed . | . . . . Distress Signals . | . . . . Times Spotted 20 | . 11 5 4 Peak Tracking Total 4 | . 3 4 2 Tactical Retreats 2 | . . 2 . Traps | -11 -10 -10 -10 ------- Run | Yrd Mat Min Sub Traps Triggered 5 | . 5 . . Indirectly . | . . . . Trap Hack Attempts . | . . . . Triggered . | . . . . Disarmed . | . . . . Reprogrammed . | . . . . Reused . | . . . . Traps Extracted . | . . . . Installed . | . . . . Triggered . | . . . . Machines | -11 -10 -10 -10 ---------- Run | Yrd Mat Min Sub Machines Disabled . | . . . . Max in Single Turn . | . . . . Machines Repaired . | . . . . Machines Dismantled . | . . . . Machines Sabotaged . | . . . . Overloaded Fab Kills . | . . . . Hacking | -11 -10 -10 -10 --------- Run | Yrd Mat Min Sub Machines Accessed . | . . . . Terminals . | . . . . Fabricators . | . . . . Repair Stations . | . . . . Recycling Units . | . . . . Scanalyzers . | . . . . Garrison Access . | . . . . Total Hacks . | . . . . Successful . | . . . . Failed . | . . . . Catastrophic . | . . . . Database Lockouts . | . . . . Manual . | . . . . Terminals . | . . . . Fabricators . | . . . . Repair Stations . | . . . . Recycling Units . | . . . . Scanalyzers . | . . . . Garrison Access . | . . . . Terminal Hacks . | . . . . Fabricator Hacks . | . . . . Repair Station Hacks . | . . . . Recycling Unit Hacks . | . . . . Scanalyzer . | . . . . Garrison Access Hacks . | . . . . Unauthorized Hacks . | . . . . Terminals . | . . . . Fabricators . | . . . . Repair Stations . | . . . . Recycling Units . | . . . . Scanalyzers . | . . . . Garrison Access . | . . . . Data Cores Recovered . | . . . . Used . | . . . . Hacking Detections . | . . . . Full Trace Events . | . . . . Feedback Events . | . . . . Feedback Blocked . | . . . . Robot Schematics Acquired . | . . . . Robots Built . | . . . . Authchips . | . . . . Time . | . . . . Total Robot Build Rating . | . . . . Part Schematics Acquired . | . . . . Parts Built . | . . . . Authchips . | . . . . Time . | . . . . Total Part Build Rating . | . . . . Part Studies Acquired . | . . . . Parts Repaired . | . . . . Time . | . . . . Parts Recycled . | . . . . Recycled Matter . | . . . . Retrieved Matter . | . . . . Retrieved Components . | . . . . Parts Scanalyzed . | . . . . Part Schematics Acquired . | . . . . Parts Damaged . | . . . . Bothacking | -11 -10 -10 -10 ------------ Run | Yrd Mat Min Sub Used RIF Installer . | . . . . Robots Hacked . | . . . . Non-combat . | . . . . Combat . | . . . . Robot Hacks Applied . | . . . . Relay Couplers Released . | . . . . Fabnet Peak Effective % . | . . . . Robots Rewired . | . . . . Allies Hacked . | . . . . Hacks Repelled . | . . . . Allies | -11 -10 -10 -10 -------- Run | Yrd Mat Min Sub Total Allies 3 | . . 3 . Largest Group 3 | . . 3 . Highest-Rated Group 40 | . . 40 . Highest-Rated Ally 16 | . . 16 . Total Orders . | . . . . Ally Attacks 16 | . . 16 . Total Damage 155 | . . 155 . Kills 1 | . . 1 . Allies Corrupted . | . . . . Allies Melted . | . . . . Intel | -11 -10 -10 -10 ------- Run | Yrd Mat Min Sub Active Infowar (turns) 323 | . 323 . . Structural 323 | . 323 . . Robot Analysis Total . | . . . . Derelict Logs Recovered . | . . . . Drone Launches . | . . . . Drone Recoveries . | . . . . Exploration | -11 -10 -10 -10 ------------- Run | Yrd Mat Min Sub Turns Passed 733 | 29 443 154 107 Spaces Moved 788 | 44 430 259 55 Core 199 | 44 107 . 48 Treads . | . . . . Legs . | . . . . Wheels . | . . . . Hover . | . . . . Flight 589 | . 323 259 7 Fastest Speed 37 | 50 37 40 40 Average Speed 67 | 50 75 52 91 Slowest Speed 150 | 50 150 120 100 Overloaded Moves . | . . . . Propulsion Burnouts . | . . . . Robots Hopped 1 | . 1 . . Potential Cave-ins . | . . . . Cave-ins Triggered . | . . . . Exploration Rate (%) 36 | 3 81 58 5 Regions Visited 3 Branch Regions 2 Pre-discovered Areas . | . . . . Known Exits Taken 3 | 1 1 1 . Unknown Exits Taken . | . . . . Scrap Searched . | . . . . Spaces Dug . | . . . . Terrain Destroyed . | . . . . Melee . | . . . . Projectile . | . . . . AOE . | . . . . Terrain Rammed . | . . . . Walls Destroyed . | . . . . Machines Disabled . | . . . . Actions | -11 -10 -10 -10 --------- Run | Yrd Mat Min Sub Total 908 | 49 503 273 83 Wait 35 | . 16 9 10 Move 783 | 43 427 258 55 Hop 1 | . 1 . . Pick Up 10 | 5 5 . . Fast Attach 7 | 1 6 . . Attach 9 | . 6 2 1 Detach 1 | . 1 . . Swap . | . . . . Drop 2 | . . 2 . Fire 60 | . 41 2 17 Melee . | . . . . Ram . | . . . . Kick . | . . . . Crush . | . . . . Escape Stasis . | . . . . Rewire . | . . . . Trap . | . . . . Miscellaneous . | . . . . Route ------- -11/Scrapyard -10/Materials (discovered 3 exits: *Mat x2 / *Min) -10/Mines (discovered 3 exits: *Mat x2 / *Sub) -10/Subcaves History --------- Turn | Location | Event 4 | -11/Scrapyard | Identified exit to Materials 4 | -11/Scrapyard | Discovered exit to Materials (range 16) 30 | -11/Scrapyard | Entered Materials 30 | -10/Materials | Evolved 1 slot: Utility x1 215 | -10/Materials | Identified exit to Materials 215 | -10/Materials | Discovered exit to Materials (range 3) 312 | -10/Materials | Build established: Hacker-Mutant 338 | -10/Materials | Discovered exit to Materials (range 10) 455 | -10/Materials | Identified exit to Mines 455 | -10/Materials | Discovered exit to Mines (range 6) 473 | -10/Materials | Entered Mines 577 | -10/Mines | Assisted by bots powering up and referring to "LRC-V3" 608 | -10/Mines | Discovered exit to Materials (range 10) 621 | -10/Mines | Discovered exit to Materials (range 7) 624 | -10/Mines | Identified exit to Subcaves 624 | -10/Mines | Discovered exit to Subcaves (range 5) 627 | -10/Mines | Entered Subcaves 628 | -10/Subcaves | Approached by a straggling Scientist 637 | -10/Subcaves | Core integrity fell below 50% 727 | -10/Subcaves | Core integrity fell below 20% 734 | -10/Subcaves | Destroyed by G9-010(R) with Subdweller Beam Cannon Last Messages --------------- 00602_ Acquired 17 matter. 00602_ Acquired 14 matter. 00604_ K-01 Serf collects debris. 00608_ EXIT=FOUND: MATERIALS 00624_ EXIT=FOUND: SUBCAVES LOCATION=SUBCAVES AMBIENT_HEAT=-10 GOAL=ESCAPE 00628_ 4K-WRU(c): "Thank the algorithms! I was beginning to lose hope I'd never make it past all the Subs lurking out here." 00631_ Flight Unit destroyed. 00651_ FW-VMH(R) destroyed. 00654_ 8E-Z3K(R) destroyed. 00659_ Acquired 48 matter. 00662_ Acquired 2 matter. 00676_ 5J-F05(u) builds Twisted Machinery. 00712_ CW-TI5(R) destroyed. 00712_ Switching to secondary target: G9-010(R). 00721_ Assault Rifle destroyed. Map ----- +----------------------------------------------------+ | ?????????????????????????????????????????????????? | | ?????????????????????????????????????????????????? | | ?????????????????????????????????????????????????? | | ??????????????????????????????????????????????? ?? | | ??????????????????????????????????????????????? ?? | | ?????????????????????????????????????????????? ??? | | ?????????????????????????????????????????????? ??? | | ????????????????????????????????????????????? #??? | | ????????????????????????????????????????????? ##?? | | ??????????????????????????????????????###???? #?? | | ??????????????????????????????? #?????# #??? #?? | | ?????????????????????????????? ##???## ??? ##? | | ?????????????????????????????? #???# #??# ## | | ???????????????????##"???????? #????# ### # | | ??????????????????? "???????? #??### # #?? | | ???????????????????" #??????## ##?# !%% #??? | | ??????????????????#" "?#"???#" ## ## #??? | | ??????????????????#" "?#""??## [ ####??# | | ??????????????????#" "?#"""?#" #& * #???# | | ??????????????????#""##?#""##"### ## # & ##??# | | ?????????????????##"""#??#"# # ##### # #?# | | ????????????????##*=&"##??# " " # # ## ### | | ????????????????# "%" #??#"" "" | | ???????????????# ##["#??#" ## #""#### # | | ????????????"" ???#" #### ### #"""""### # | | ???????????"" ?????## #@ #?#"" "" # | | ???????????# ????????##"R""" ### " " " # # | | ??????????????????????# #"""### """ ## ## | | ??????????????????????#######?# ######?#### | | ??????????????????????????????##"??????????#### | | ???????????????????????????????##??????????????### | | ?????????????????????????????????????????????????? | | ?????????????????????????????????????????????????? | | ?????????????????????????????????????????????????? | | ?????????????????????????????????????????????????? | | ?????????????????????????????????????????????????? | | ?????????????????????????????????????????????????? | | ?????????????????????????????????????????????????? | | ?????????????????????????????????????????????????? | | ?????????????????????????????????????????????????? | | ?????????????????????????????????????????????????? | | ?????????????????????????????????????????????????? | | ?????????????????????????????????????????????????? | | ?????????????????????????????????????????????????? | | ?????????????????????????????????????????????????? | | | | | | | | | | | +----------------------------------------------------+ Best States ------------- Heat Dissipation 39 Energy Generation 10 Energy Capacity 250 Matter Stores 300 Matter Capacity 300 Sight Range 16 Terrain Scan Density 10 Resistance: KI 35 Resistance: TH 35 Resistance: EX 35 Resistance: EM 35 Resistance: I 35 Resistance: S 35 Resistance: P 35 Evasion (%) 62 Targeting Accuracy 5 Offensive Hacking 20 Item Schematics ----------------- None Robot Schematics ------------------ None Fabricated ------------ Nothing Repaired ---------- Nothing Studied --------- None Alien Tech Used ----------------- None Achievements -------------- None Challenges ------------ None Game ------ Seed StormGodAccelerator Manual? 0 Play Time 00:06:31 Cumulative 176.9 hours Start 2025.12.08 @ 13:59:23 End 2025.12.08 @ 14:05:22 Sessions 1 Manual Loads 0 Difficulty Explorer Special Mode None Game No. 250 Rogue 0 Adventurer 0 Explorer 250 Win Type - Total 0 Types 0/0/0/0/0/0/0/0/0/0 Lore% 70 Gallery% 67 Achievement% 53 Wizard Run 0 Options --------- Layout 1 ASCII 0 Keyboard 0 Movement Mouse Keybinds 0 Fullscreen 1 Font 24/Smallcaps Map View 50x35 Zoom Use 0% Tactical HUD 1 Map Filters NONE Filters NONE Steam 1 RUN: 39d47cdf-3524-436b-ad4d-8ab6bbd4104c